Cogmind - Beta 13 @@@ ROGUE MODE // 2024.05.04 @ 18:51:45 Player: Fazzonamite Result: Destroyed by H-88 Terminator with KE Penetrator Performance ------------- Evolutions (9) 4500 Regions Visited (15) 3000 Robots Destroyed (92) 460 Value Destroyed (3584) 3584 Prototype IDs (26) 520 Alien Tech Used (0) 0 Bonus (920) 920 TOTAL SCORE: 12984 Bonus ------- High Alert Combat Kills 74 Follower Combat Kills 546 Aligned with FarCom 300 Cogmind --------- Core Integrity 0/1600 Matter 284/300 Energy 100/100 System Corruption 0% Temperature Cool (0) Movement Core (50) Location -1/Access Parts ------- > --- POWER (2) -------- (None) > --- PROPULSION (6) --- (None) > --- UTILITY (13) ----- Improved Hacking Suite > --- WEAPON (4) ------- (None) > --- INVENTORY (5) ---- Quantum Reactor Large Matter Pod (150) Enhanced Quantum Rifle Improved Remote Datajack Peak State ------------ > --- POWER ------------ Antimatter Reactor > --- PROPULSION ------- Improved Carbon-fiber Leg Flexi-carbon Leg Flexi-carbon Leg Flexi-carbon Leg > --- UTILITY ---------- Improved Heat Sink Large Storage Unit Compact Battery Targeting Computer Core Analyzer Improved Medium Armor Plating Improved Shield Generator Improved Hacking Suite System Shield System Shield > --- WEAPON ----------- XL Autogun Array > --- INVENTORY -------- Light Nuclear Core Xenon Bombardment Thruster Nuclear Pulse Array Impulse Thruster Large Matter Pod Structural Scanner Phase Shifter Improved Medium Armor Plating Improved Medium Armor Plating Gatling Laser Grenade Launcher Improved Remote Datajack Spear Makeshift Spear [Rating: 99] Favorites ----------- Power Nuclear Core Engine Light Deuterium Engine Power Core Nuclear Core Reactor Micro Antimatter Reactor Propulsion Improved Carbon-fiber Leg Leg Improved Carbon-fiber Leg Wheel Wheel Flight Unit Impulse Thruster Array Utility Targeting Computer Device Improved Shield Generator Storage Large Storage Unit Processor Targeting Computer Hackware System Shield Protection Improved Medium Armor Plating Weapon XL Autogun Array Energy Gun Small Laser Ballistic Gun XL Autogun Array Launcher Grenade Launcher Slashing Weapon Chainsword Piercing Weapon Makeshift Spear Build | -11 -10 -10 -10 -9 -8 -7 -7 -6 -6 -6 -5 -4 -3 -2 -1 ------- Run | Yrd Mat Min Exi Min Mat Fac Sto Fac Low Low Fac Fac Res Res Acc Slots Evolved 18 | . . . . . 4 2 . 2 . . 2 2 2 2 2 Power 1 | . . . . . . . . . . . . . 1 . . Propulsion 4 | . . . . . . 1 . 1 . . . . 1 1 . Utility 11 | . . . . . 2 1 . 1 . . 2 2 . 1 2 Weapon 2 | . . . . . 2 . . . . . . . . . . Parts Attached 82 | 5 3 1 3 1 9 5 . 3 . . 5 22 10 2 13 Power 9 | 1 1 . . . 1 1 . . . . . 3 1 1 . Engine 3 | 1 1 . . . 1 . . . . . . . . . . Core 3 | . . . . . . 1 . . . . . 2 . . . Reactor 3 | . . . . . . . . . . . . 1 1 1 . Propulsion 24 | 2 1 . . . 2 1 . 1 . . 3 3 3 . 8 Treads . | . . . . . . . . . . . . . . . . Leg 7 | . . . . . 2 1 . 1 . . 3 . . . . Wheel 10 | 2 1 . . . . . . . . . . . . . 7 Hover . | . . . . . . . . . . . . . . . . Flight 7 | . . . . . . . . . . . . 3 3 . 1 Utility 29 | . 1 . 1 . 5 3 . 2 . . 2 7 4 1 3 Device 9 | . . . . . . . . 1 . . . 3 2 . 3 Storage 4 | . . . 1 . 1 1 . 1 . . . . . . . Processor 4 | . 1 . . . 2 . . . . . . . 1 . . Hackware 4 | . . . . . . 1 . . . . 2 1 . . . Protection 8 | . . . . . 2 1 . . . . . 3 1 1 . Artifact . | . . . . . . . . . . . . . . . . Weapon 20 | 2 . 1 2 1 1 . . . . . . 9 2 . 2 Energy Gun 5 | 1 . . 1 1 . . . . . . . 1 . . 1 Energy Cannon . | . . . . . . . . . . . . . . . . Ballistic Gun 8 | 1 . 1 1 . 1 . . . . . . 4 . . . Ballistic Cannon . | . . . . . . . . . . . . . . . . Launcher 1 | . . . . . . . . . . . . 1 . . . Special Weapon . | . . . . . . . . . . . . . . . . Impact Weapon . | . . . . . . . . . . . . . . . . Slashing Weapon 1 | . . . . . . . . . . . . . 1 . . Piercing Weapon 5 | . . . . . . . . . . . . 3 1 . 1 Special Melee Weapon . | . . . . . . . . . . . . . . . . Unidentified Prototypes 1 | . . . . . . . . . . . . 1 . . . Parts Lost 48 | . . . . . . . . . . . . 23 8 . 17 Power 4 | . . . . . . . . . . . . 2 1 . 1 Propulsion 15 | . . . . . . . . . . . . 6 2 . 7 Utility 20 | . . . . . . . . . . . . 9 4 . 7 Weapon 9 | . . . . . . . . . . . . 6 1 . 2 Highest Loss Streak 16 | . . . . . . . . . . . . 16 8 . 7 To Critical Strikes 2 | . . . . . . . . . . . . 2 . . . Average Slot Usage (%) 73 | . 84 85 74 100 70 75 76 80 80 80 82 82 54 32 38 Engine 4 | . 14 14 14 14 9 6 . . . . . . . . . Core 1 | . . . . . . . 7 6 6 6 5 1 . . . Leg 14 | . . . . . 17 23 23 26 26 26 23 17 . . . Wheel 4 | . 28 28 28 28 . . . . . . . . . . 7 Flight 1 | . . . . . . . . . . . . 1 11 4 2 Device 3 | . . . . . . . . 6 6 6 5 8 7 . 3 Storage 6 | . . . 5 14 9 7 7 13 13 13 11 8 . . . Processor 12 | . 13 14 14 14 18 15 15 13 13 13 11 10 9 8 7 Hackware 6 | . . . . . . 6 7 . . . 11 13 9 8 6 Protection 4 | . . . . . 7 7 7 6 6 6 5 4 2 2 2 Energy Gun 2 | . 14 14 6 14 . . . . . . . 1 . . . Ballistic Gun 6 | . 14 14 6 14 9 7 7 6 6 6 5 8 . . . Naked Turns . | . . . . . . . . . . . . . . . . Heaviest Build 64 | 5 5 5 10 12 33 49 49 54 54 54 54 64 19 13 22 Greatest Support 78 | 20 20 20 20 20 36 54 54 72 72 72 78 78 36 16 64 Greatest Overweight (x) 8 | . . . . . 1 . . . . . . 8 . . 2 Average Overweight (x) . | . . . . . . . . . . . . . . . . Largest Inventory Capacity 15 | 5 5 5 8 8 10 15 15 15 15 15 15 15 5 5 5 Average Capacity 10 | 5 5 5 6 8 8 12 15 15 15 15 15 13 5 5 5 Most Carried 15 | 5 5 5 8 8 9 15 15 14 15 15 15 15 5 4 5 Average Carried 9 | 2 3 4 6 7 7 11 15 12 14 14 13 12 3 2 3 Final Capacity 15 | 5 5 5 8 8 10 15 15 15 15 15 15 5 5 5 5 Final Carried 15 | 2 5 5 8 8 9 15 15 14 15 15 15 5 3 3 4 Class Distribution -------------------- 37% | Gunner 23% | Hacker-Gunner 17% | Mutant 10% | Hacker-Mutant 5% | Commander-Gunner 5% | Hacker-Scout Dominant Class ---------------- Mutant | -10/Materials Mutant | -10/Mines Mutant | -10/Exiles Mutant | -9/Mines Gunner | -8/Materials Gunner | -7/Factory Commander-Gunner | -7/Storage Commander-Gunner | -6/Factory Gunner | -6/Lower Caves Gunner | -6/Lower Caves Hacker-Gunner | -5/Factory Hacker-Gunner | -4/Factory Hacker-Scout | -3/Research Hacker-Mutant | -2/Research Hacker-Mutant | -1/Access Resources | -11 -10 -10 -10 -9 -8 -7 -7 -6 -6 -6 -5 -4 -3 -2 -1 ----------- Run | Yrd Mat Min Exi Min Mat Fac Sto Fac Low Low Fac Fac Res Res Acc Matter Collected 3334 | 195 85 37 . 53 690 505 146 45 285 . 380 806 6 72 29 Remotely . | . . . . . . . . . . . . . . . . Salvage Created 4014 | . 163 88 . 11 842 430 123 64 537 . 647 1080 . . 29 Parts 256 | . 10 7 . 1 70 29 8 1 35 . 33 60 . . 2 Haulers Intercepted 3 | . . . . . 1 1 1 . . . . . . . . Recyclers Shooed . | . . . . . . . . . . . . . . . . Parts Field Recycled . | . . . . . . . . . . . . . . . . Retrieved Matter . | . . . . . . . . . . . . . . . . Parts Self-Destructed 35 | . . . . . . . . . 35 . . . . . . Prevented . | . . . . . . . . . . . . . . . . Kills | -11 -10 -10 -10 -9 -8 -7 -7 -6 -6 -6 -5 -4 -3 -2 -1 ------- Run | Yrd Mat Min Exi Min Mat Fac Sto Fac Low Low Fac Fac Res Res Acc Combat Hostiles Destroyed 74 | . 7 2 . 1 20 6 1 1 11 . 10 15 . . . Melee 1 | . . . . . . . . . . . . 1 . . . Guns 72 | . 7 2 . 1 20 6 1 1 11 . 10 13 . . . AOE 1 | . . . . . . . . . . . . 1 . . . Classes Destroyed 16 | . 2 . . . 7 1 . . 1 . 1 4 . . . Worker 1 | . . . . . 1 . . . . . . . . . . Builder 4 | . . . . . 1 1 . . . . 1 1 . . . Tunneler 3 | . . . . . . . . . . . . 2 . . 1 Hauler 3 | . . . . . 1 1 1 . . . . . . . . Recycler 1 | . . . . . . . . . . . . 1 . . . Operator 2 | . . . . . 2 . . . . . . . . . . Watcher 4 | . . . . . 2 2 . . . . . . . . . Swarmer 20 | . 5 . . 1 10 . . . 4 . . . . . . Grunt 23 | . 2 2 . . 3 3 . . 5 . 4 4 . . . Brawler 1 | . . . . . . . . . 1 . . . . . . Duelist 1 | . . . . . . 1 . . . . . . . . . Sentry 14 | . . . . . 6 1 1 1 1 . 2 2 . . . Specialist 2 | . . . . . . . . . . . . 2 . . . Hunter 6 | . . . . . 1 1 . . . . 2 2 . . . Programmer 6 | . . . . . . . . . . . 2 4 . . . Heavy 1 | . . . . . . . . . . . . 1 . . . Best Kill Streak 7 | . 3 2 . 1 5 4 1 1 7 . 3 6 . . 1 Combat Bots Only 7 | . 3 2 . 1 4 4 1 1 7 . 3 4 . . . Max Kills in Single Turn 2 | . 1 1 . 1 2 2 1 1 2 . 2 2 . . 1 Gunslinging . | . . . . . . . . . . . . . . . . Exploded 1 | . . . . . . . . . . . . 1 . . . Melee 1 | . . . . . . . . . . . . 1 . . . Uniques/NPCs Destroyed . | . . . . . . . . . . . . . . . . Combat | -11 -10 -10 -10 -9 -8 -7 -7 -6 -6 -6 -5 -4 -3 -2 -1 -------- Run | Yrd Mat Min Exi Min Mat Fac Sto Fac Low Low Fac Fac Res Res Acc Hostile Shots Fired 738 | . 35 3 . 3 32 10 11 9 16 . 34 300 83 . 202 Missed 276 | . 15 2 . . 13 3 4 3 5 . 10 105 48 . 68 Damage Taken 8598 | . 168 15 . 31 188 66 48 36 159 . 331 3223 1128 . 3205 Core 3009 | . 26 . . 15 10 25 11 4 14 . 30 748 507 . 1619 Absorbed by Shields 370 | . . . . . . . . 15 57 . 118 180 . . . Redirected to Shielding 253 | . . . . . . . . . . . . . 133 . 120 Ignored by Resistances 372 | . . . . . . . . . . . . 372 . . . Core Remaining (%) 84 | 100 . . . 83 98 . 94 . . 97 97 34 61 100 . Volleys Fired 190 | . 24 3 . 4 43 25 3 1 19 . 22 45 . . 1 Largest 4 | . 2 2 . 2 2 1 1 1 1 . 1 4 . . 1 Hottest 140 | . 60 60 . 85 85 60 60 60 60 . 60 140 . . 65 Shots Fired 312 | . 48 6 . 8 44 25 3 1 19 . 22 135 . . 1 Gun 308 | . 48 6 . 8 44 25 3 1 19 . 22 131 . . 1 Cannon . | . . . . . . . . . . . . . . . . Launcher 4 | . . . . . . . . . . . . 4 . . . Special . | . . . . . . . . . . . . . . . . Kinetic 247 | . 24 3 . 4 43 25 3 1 19 . 22 103 . . . Thermal 61 | . 24 3 . 4 1 . . . . . . 28 . . 1 Explosive 4 | . . . . . . . . . . . . 4 . . . Electromagnetic . | . . . . . . . . . . . . . . . . Robot Hit Streak 19 | . 7 7 . 8 17 9 19 4 9 . 12 14 . . . Robot Miss Streak 7 | . 4 . . 2 7 3 1 1 2 . 6 6 . . . Penetration Max . | . . . . . . . . . . . . . . . . Secondary Targets 4 | . . 1 . . . . . . . . . 3 . . . Max Gunslinging Chain 1 | . . 1 . . . . . . . . . 1 . . . Shots Hit Robots 240 | . 26 6 . 2 32 16 3 1 18 . 21 105 3 . 7 Core Hits 178 | . 10 3 . 2 32 17 3 2 19 . 26 62 1 . 1 Critical Kills 1 | . . 1 . . . . . . . . . . . . . Critical Parts Destroyed . | . . . . . . . . . . . . . . . . Critical Strikes 3 | . . 1 . . . . . . . . . . . . 2 Destroy 1 | . . 1 . . . . . . . . . . . . . Sever 1 | . . . . . . . . . . . . . . . 1 Impale 1 | . . . . . . . . . . . . . . . 1 Melee Attacks 41 | . . . . . . . . . . . . 8 19 . 14 Impact . | . . . . . . . . . . . . . . . . Slashing 21 | . . . . . . . . . . . . . 14 . 7 Piercing 20 | . . . . . . . . . . . . 8 5 . 7 Sneak Attacks 1 | . . . . . . . . . . . . . . . 1 Combat Hostiles . | . . . . . . . . . . . . . . . . Follow-up Attacks 4 | . . . . . . . . . . . . . 1 . 3 Damage Inflicted 8567 | . 267 55 . 22 1320 965 219 71 1081 . 1200 2952 64 . 351 Guns 7612 | . 267 55 . 22 1320 965 219 71 1081 . 1200 2412 . . . Cannons . | . . . . . . . . . . . . . . . . Explosions 371 | . . . . . . . . . . . . 371 . . . Melee 583 | . . . . . . . . . . . . 169 63 . 351 Ramming 1 | . . . . . . . . . . . . . 1 . . Kinetic 6755 | . 98 23 . 6 1302 965 219 71 1081 . 1200 1790 . . . Thermal 857 | . 169 32 . 16 18 . . . . . . 622 . . . Explosive 371 | . . . . . . . . . . . . 371 . . . Electromagnetic . | . . . . . . . . . . . . . . . . Impact . | . . . . . . . . . . . . . . . . Slashing 173 | . . . . . . . . . . . . . 63 . 110 Piercing 410 | . . . . . . . . . . . . 169 . . 241 Highest Corruption 2 | . 1 1 1 1 . . . . . . 1 2 . . . Average Corruption 1 | . 1 1 1 1 . . . . . . 1 1 . . . Corruption Purged . | . . . . . . . . . . . . . . . . Corruption Blocked . | . . . . . . . . . . . . . . . . Effects 12 | . 2 1 2 2 . . . . . . 1 4 . . . Message Errors 2 | . . . 1 . . . . . . . . 1 . . . Matter Fused 2 | . . . 1 . . . . . . . . 1 . . . Energy Discharges 2 | . . . . 1 . . . . . . 1 . . . . Data Loss (minor) 2 | . . . . 1 . . . . . . . 1 . . . Data Loss (major) 2 | . 1 1 . . . . . . . . . . . . . Alerts 1 | . 1 . . . . . . . . . . . . . . Weapon Failures 1 | . . . . . . . . . . . . 1 . . . Overload Shots . | . . . . . . . . . . . . . . . . Overflow Damage 68 | . . . . . . . . . . . . 3 . . 65 Projectiles . | . . . . . . . . . . . . . . . . Explosions 3 | . . . . . . . . . . . . 3 . . . Melee 65 | . . . . . . . . . . . . . . . 65 Knockbacks . | . . . . . . . . . . . . . . . . Impact . | . . . . . . . . . . . . . . . . Kinetic . | . . . . . . . . . . . . . . . . Secondary . | . . . . . . . . . . . . . . . . Self-Inflicted Damage 86 | . . . . . . . . . . . . 86 . . . Shots 3 | . . . . . . . . . . . . 3 . . . Rammed 1 | . . . . . . . . . . . . . 1 . . Targets Rammed 1 | . . . . . . . . . . . . . 1 . . Kicked . | . . . . . . . . . . . . . . . . Crushed . | . . . . . . . . . . . . . . . . Highest Temperature 340 | . 60 29 . 68 222 212 82 44 340 . 147 70 . . . Average Temperature 53 | . 29 18 . 29 57 70 39 32 125 . 52 22 . . . Received Heat Transfer 700 | . 18 9 . . 33 18 12 12 74 . 49 382 48 . 45 Effects 2 | . . . . . . . . . 2 . . . . . . Interference 2 | . . . . . . . . . 2 . . . . . . Siege Activations . | . . . . . . . . . . . . . . . . Robots Corrupted . | . . . . . . . . . . . . . . . . Combat Hostiles . | . . . . . . . . . . . . . . . . Parts Fried . | . . . . . . . . . . . . . . . . Impact Corruptions . | . . . . . . . . . . . . . . . . Robots Melted . | . . . . . . . . . . . . . . . . Combat Hostiles . | . . . . . . . . . . . . . . . . Parts Melted 3 | . 1 . . 1 . . . . . . . 1 . . . Heat Transferred 1899 | . 375 75 . 37 37 . . . . . . 1375 . . . Parts Sabotaged . | . . . . . . . . . . . . . . . . Parts Stolen . | . . . . . . . . . . . . . . . . Parts Stripped . | . . . . . . . . . . . . . . . . Power Chain Reactions . | . . . . . . . . . . . . . . . . Alert | -11 -10 -10 -10 -9 -8 -7 -7 -6 -6 -6 -5 -4 -3 -2 -1 ------- Run | Yrd Mat Min Exi Min Mat Fac Sto Fac Low Low Fac Fac Res Res Acc Peak Influence 690 | . 265 153 . 192 690 325 223 90 . . 216 224 329 221 148 Initial 313 | . . 103 . . 74 313 58 37 . . 65 37 86 165 132 Average 159 | . 152 145 . 94 357 230 108 46 . . 93 93 109 183 100 Maximum Alert Level 2 | . 1 . . . 2 1 1 . . . 1 1 1 1 . Low Security (%) 75 | 100 58 100 . 100 8 53 78 100 . . 97 95 87 88 100 Level 1 20 | . 41 . . . 58 46 21 . . . 2 4 12 11 . Level 2 3 | . . . . . 32 . . . . . . . . . . Level 3 . | . . . . . . . . . . . . . . . . Level 4 . | . . . . . . . . . . . . . . . . Level 5 . | . . . . . . . . . . . . . . . . High Security . | . . . . . . . . . . . . . . . . Max Security . | . . . . . . . . . . . . . . . . Squads Dispatched 18 | . 1 . . . 1 2 1 . . . 2 6 3 . 2 Investigation . | . . . . . . . . . . . . . . . . Extermination 5 | . . . . . . 1 . . . . 1 1 1 . 1 Reinforcement 10 | . 1 . . . 1 . 1 . . . 1 3 2 . 1 Assault . | . . . . . . . . . . . . . . . . Garrison 3 | . . . . . . 1 . . . . . 2 . . . Intercept . | . . . . . . . . . . . . . . . . Searches Triggered . | . . . . . . . . . . . . . . . . Construction Impeded . | . . . . . . . . . . . . . . . . Haulers Reinforced . | . . . . . . . . . . . . . . . . Active Scanning Responses . | . . . . . . . . . . . . . . . . Cargo Convoy Interrupts . | . . . . . . . . . . . . . . . . Stealth | -11 -10 -10 -10 -9 -8 -7 -7 -6 -6 -6 -5 -4 -3 -2 -1 --------- Run | Yrd Mat Min Exi Min Mat Fac Sto Fac Low Low Fac Fac Res Res Acc Distress Signals 14 | . 2 . . . 3 1 1 . . . 2 1 2 . 2 Communications Jammed . | . . . . . . . . . . . . . . . . Distress Signals . | . . . . . . . . . . . . . . . . Times Spotted 183 | . 12 2 . 6 32 14 9 1 13 . 11 37 28 . 18 Peak Tracking Total 15 | . 4 2 . 3 5 4 3 1 4 . 3 14 15 . 13 Tactical Retreats 14 | . 2 . . 1 . . . . . . . 4 5 . 2 Traps | -11 -10 -10 -10 -9 -8 -7 -7 -6 -6 -6 -5 -4 -3 -2 -1 ------- Run | Yrd Mat Min Exi Min Mat Fac Sto Fac Low Low Fac Fac Res Res Acc Traps Triggered 2 | . 1 . . . . . . . . . 1 . . . . Indirectly . | . . . . . . . . . . . . . . . . Trap Hack Attempts . | . . . . . . . . . . . . . . . . Triggered . | . . . . . . . . . . . . . . . . Disarmed 4 | . . . . . . . 4 . . . . . . . . Reprogrammed . | . . . . . . . . . . . . . . . . Reused . | . . . . . . . . . . . . . . . . Traps Extracted . | . . . . . . . . . . . . . . . . Installed . | . . . . . . . . . . . . . . . . Triggered . | . . . . . . . . . . . . . . . . Machines | -11 -10 -10 -10 -9 -8 -7 -7 -6 -6 -6 -5 -4 -3 -2 -1 ---------- Run | Yrd Mat Min Exi Min Mat Fac Sto Fac Low Low Fac Fac Res Res Acc Machines Disabled 11 | . . . . . 5 2 . . 2 . 2 . . . . Max in Single Turn 1 | . . . . . 1 1 . . 1 . 1 . . . . Garrison Access 2 | . . . . . . 1 1 . . . . . . . . Machines Repaired . | . . . . . . . . . . . . . . . . Machines Dismantled . | . . . . . . . . . . . . . . . . Machines Sabotaged . | . . . . . . . . . . . . . . . . Overloaded Fab Kills . | . . . . . . . . . . . . . . . . Hacking | -11 -10 -10 -10 -9 -8 -7 -7 -6 -6 -6 -5 -4 -3 -2 -1 --------- Run | Yrd Mat Min Exi Min Mat Fac Sto Fac Low Low Fac Fac Res Res Acc Machines Accessed 24 | . 1 . 1 1 4 3 5 . . 1 2 1 2 3 . Terminals 16 | . 1 . . . 4 1 4 . . . 1 1 2 2 . Fabricators 3 | . . . . . . 1 . . . . 1 . . 1 . Repair Stations . | . . . . . . . . . . . . . . . . Recycling Units . | . . . . . . . . . . . . . . . . Scanalyzers . | . . . . . . . . . . . . . . . . Garrison Access 2 | . . . . . . 1 1 . . . . . . . . Total Hacks 40 | . 1 . 1 1 6 5 11 . . 1 4 2 3 5 . Successful 19 | . 1 . 1 1 6 3 3 . . 1 . 2 . 1 . Failed 21 | . . . . . . 2 8 . . . 4 . 3 4 . Catastrophic 6 | . . . . . . . 2 . . . 1 . 1 2 . Database Lockouts . | . . . . . . . . . . . . . . . . Manual 3 | . . . 1 . . . 2 . . . . . . . . Terminals 27 | . 1 . . . 6 1 8 . . . 3 2 3 3 . Fabricators 5 | . . . . . . 2 . . . . 1 . . 2 . Repair Stations . | . . . . . . . . . . . . . . . . Recycling Units . | . . . . . . . . . . . . . . . . Scanalyzers . | . . . . . . . . . . . . . . . . Garrison Access 5 | . . . . . . 2 3 . . . . . . . . Terminal Hacks 15 | . 1 . 1 1 6 1 2 . . 1 . 2 . . . Prototype ID Bank 1 | . . . . . 1 . . . . . . . . . . Open Door 2 | . . . . 1 . . . . . 1 . . . . . Branch Access Points 1 | . . . . . 1 . . . . . . . . . . Emergency Access Points 1 | . . . . . 1 . . . . . . . . . . Alert Level 1 | . . . . . . 1 . . . . . . . . . Unreport Threat 3 | . . . . . . . 1 . . . . 2 . . . Disarm Traps 1 | . . . . . . . 1 . . . . . . . . Zone Layout 4 | . 1 . . . 3 . . . . . . . . . . Derelict Proto ID Bank 1 | . . . 1 . . . . . . . . . . . . Fabricator Hacks 2 | . . . . . . 1 . . . . . . . 1 . Build 2 | . . . . . . 1 . . . . . . . 1 . Repair Station Hacks . | . . . . . . . . . . . . . . . . Recycling Unit Hacks . | . . . . . . . . . . . . . . . . Scanalyzer . | . . . . . . . . . . . . . . . . Garrison Access Hacks 2 | . . . . . . 1 1 . . . . . . . . Seal Access 2 | . . . . . . 1 1 . . . . . . . . Unauthorized Hacks . | . . . . . . . . . . . . . . . . Terminals . | . . . . . . . . . . . . . . . . Fabricators . | . . . . . . . . . . . . . . . . Repair Stations . | . . . . . . . . . . . . . . . . Recycling Units . | . . . . . . . . . . . . . . . . Scanalyzers . | . . . . . . . . . . . . . . . . Garrison Access . | . . . . . . . . . . . . . . . . Data Cores Recovered 1 | . . . . . 1 . . . . . . . . . . Used . | . . . . . . . . . . . . . . . . Hacking Detections 14 | . . . . . 1 1 5 . . . 2 . 2 3 . Full Trace Events . | . . . . . . . . . . . . . . . . Feedback Events . | . . . . . . . . . . . . . . . . Feedback Blocked . | . . . . . . . . . . . . . . . . Robot Schematics Acquired . | . . . . . . . . . . . . . . . . Robots Built 6 | . . . . . . 3 . . . . . . . 3 . Authchips . | . . . . . . . . . . . . . . . . Time 201 | . . . . . . 99 . . . . . . . 102 . Total Robot Build Rating 30 | . . . . . . 6 . . . . . . . 24 . Part Schematics Acquired . | . . . . . . . . . . . . . . . . Parts Built . | . . . . . . . . . . . . . . . . Authchips . | . . . . . . . . . . . . . . . . Time . | . . . . . . . . . . . . . . . . Total Part Build Rating . | . . . . . . . . . . . . . . . . Parts Repaired . | . . . . . . . . . . . . . . . . Time . | . . . . . . . . . . . . . . . . Parts Recycled . | . . . . . . . . . . . . . . . . Recycled Matter . | . . . . . . . . . . . . . . . . Retrieved Matter . | . . . . . . . . . . . . . . . . Retrieved Components . | . . . . . . . . . . . . . . . . Parts Scanalyzed . | . . . . . . . . . . . . . . . . Part Schematics Acquired . | . . . . . . . . . . . . . . . . Parts Damaged . | . . . . . . . . . . . . . . . . Bothacking | -11 -10 -10 -10 -9 -8 -7 -7 -6 -6 -6 -5 -4 -3 -2 -1 ------------ Run | Yrd Mat Min Exi Min Mat Fac Sto Fac Low Low Fac Fac Res Res Acc Used RIF Installer . | . . . . . . . . . . . . . . . . Robots Hacked . | . . . . . . . . . . . . . . . . Non-combat . | . . . . . . . . . . . . . . . . Combat . | . . . . . . . . . . . . . . . . Robot Hacks Applied . | . . . . . . . . . . . . . . . . Relay Couplers Released . | . . . . . . . . . . . . . . . . Fabnet Peak Effective % . | . . . . . . . . . . . . . . . . Robots Rewired . | . . . . . . . . . . . . . . . . Allies Hacked . | . . . . . . . . . . . . . . . . Hacks Repelled . | . . . . . . . . . . . . . . . . Allies | -11 -10 -10 -10 -9 -8 -7 -7 -6 -6 -6 -5 -4 -3 -2 -1 -------- Run | Yrd Mat Min Exi Min Mat Fac Sto Fac Low Low Fac Fac Res Res Acc Total Allies 22 | . . 3 . . . 3 13 . . . . . . 3 . Largest Group 13 | . . 3 3 3 3 3 13 4 4 . . . . 3 3 Highest-Rated Group 266 | . . 40 40 40 40 54 266 63 63 . . . . 126 126 Highest-Rated Ally 42 | . . 16 16 16 16 18 31 16 16 . . . . 42 42 Total Orders 3 | . . . . . . . . . . . . . . . 3 ROAM 2 | . . . . . . . . . . . . . . . 2 FOLLOW 1 | . . . . . . . . . . . . . . . 1 Ally Attacks 138 | . . . . 10 29 7 49 . 32 . . . . 11 . Total Damage 1792 | . . . . 80 256 200 671 . 336 . . . . 249 . Kills 23 | . . . . 5 2 2 9 . 4 . . . . 1 . Allies Corrupted . | . . . . . . . . . . . . . . . . Allies Melted . | . . . . . . . . . . . . . . . . Intel | -11 -10 -10 -10 -9 -8 -7 -7 -6 -6 -6 -5 -4 -3 -2 -1 ------- Run | Yrd Mat Min Exi Min Mat Fac Sto Fac Low Low Fac Fac Res Res Acc Robot Analysis Total . | . . . . . . . . . . . . . . . . Derelict Logs Recovered 3 | . . 1 . 1 . . . . 1 . . . . . . Drone Launches . | . . . . . . . . . . . . . . . . Drone Recoveries . | . . . . . . . . . . . . . . . . Exploration | -11 -10 -10 -10 -9 -8 -7 -7 -6 -6 -6 -5 -4 -3 -2 -1 ------------- Run | Yrd Mat Min Exi Min Mat Fac Sto Fac Low Low Fac Fac Res Res Acc Turns Passed 7747 | 28 209 330 291 295 780 1295 482 106 523 140 1008 906 581 239 534 Spaces Moved 6293 | 23 135 355 320 316 490 819 310 72 400 116 635 618 790 294 600 Core 93 | 7 . . . . . . . . . . . 1 . . 85 Treads . | . . . . . . . . . . . . . . . . Legs 3272 | . . . . . 484 819 310 72 400 116 635 436 . . . Wheels 1357 | 16 135 355 320 316 6 . . . . . . . . . 209 Hover . | . . . . . . . . . . . . . . . . Flight 1571 | . . . . . . . . . . . . 181 790 294 306 Fastest Speed 34 | 50 80 80 80 80 95 120 120 120 120 120 120 34 35 45 40 Average Speed 90 | 70 80 80 80 80 119 120 120 120 120 120 120 98 36 45 60 Slowest Speed 450 | 80 80 80 80 80 190 120 120 120 120 120 120 450 45 45 150 Overloaded Moves . | . . . . . . . . . . . . . . . . Propulsion Burnouts . | . . . . . . . . . . . . . . . . Robots Hopped 8 | . . . . . . . . . . . . 1 6 1 . Cave-ins Triggered . | . . . . . . . . . . . . . . . . Exploration Rate (%) 33 | 3 27 75 60 59 68 29 55 2 64 12 16 17 28 8 19 Regions Visited 15 Branch Regions 6 Pre-discovered Areas . | . . . . . . . . . . . . . . . . Known Exits Taken 2 | . . 1 . . . . . . 1 . . . . . . Unknown Exits Taken 13 | 1 1 . 1 1 1 1 1 1 . 1 1 1 1 1 . Scrap Searched 6 | . . 1 . 1 . . . . 3 1 . . . . . Spaces Dug 68 | . . . . . 29 14 . . . . . 8 11 . 6 Terrain Destroyed 122 | . . . . . 61 15 2 . 1 . 3 23 11 . 6 Melee 18 | . . . . . . . . . . . . 1 11 . 6 Projectile 91 | . . . . . 61 15 2 . 1 . 3 9 . . . AOE 13 | . . . . . . . . . . . . 13 . . . Terrain Rammed . | . . . . . . . . . . . . . . . . Walls Destroyed . | . . . . . . . . . . . . . . . . Machines Disabled . | . . . . . . . . . . . . . . . . Actions | -11 -10 -10 -10 -9 -8 -7 -7 -6 -6 -6 -5 -4 -3 -2 -1 --------- Run | Yrd Mat Min Exi Min Mat Fac Sto Fac Low Low Fac Fac Res Res Acc Total 8163 | 34 193 395 354 351 685 1133 420 92 443 117 883 862 1055 399 747 Wait 1464 | . 26 35 29 28 122 268 108 14 22 . 213 148 237 103 111 Move 6263 | 22 134 354 319 315 489 818 309 71 399 115 634 615 778 291 600 Hop 7 | . . . . . . . . . . . . 1 5 1 . Pick Up 78 | 7 4 1 1 1 12 11 . 2 2 1 4 12 8 2 10 Fast Attach 11 | . . . 2 1 1 1 . . . . . 3 . . 3 Attach 59 | 5 1 . 1 . 5 2 . 3 . . 2 18 10 2 10 Detach 4 | . . . . . . 1 . . . . . 1 1 . 1 Swap 12 | . 2 1 . . 3 2 . . . . 3 1 . . . Drop 41 | . 2 1 2 2 10 5 . 1 1 1 5 10 1 . . Fire 190 | . 24 3 . 4 43 25 3 1 19 . 22 45 . . 1 Melee 33 | . . . . . . . . . . . . 8 14 . 11 Ram 1 | . . . . . . . . . . . . . 1 . . Kick . | . . . . . . . . . . . . . . . . Crush . | . . . . . . . . . . . . . . . . Escape Stasis . | . . . . . . . . . . . . . . . . Rewire . | . . . . . . . . . . . . . . . . Trap . | . . . . . . . . . . . . . . . . Miscellaneous . | . . . . . . . . . . . . . . . . Route ------- -11/Scrapyard -10/Materials -10/Mines (discovered 2 exits: [*Mat] / *Exi) -10/Exiles -9/Mines (discovered 2 exits: *Mat x2) -8/Materials -7/Factory -7/Storage -6/Factory -6/Lower Caves -6/Lower Caves -5/Factory -4/Factory -3/Research -2/Research -1/Access History --------- Turn | Location | Event 13 | -11/Scrapyard | Discovered new exit (range 16) 29 | -11/Scrapyard | Entered Materials 204 | -10/Materials | Discovered new exit (range 12) 238 | -10/Materials | Entered Mines 306 | -10/Mines | Build established: Mutant 306 | -10/Mines | Discovered new exit (range 10) 481 | -10/Mines | Assisted by bots powering up and referring to "LRC-V3" 498 | -10/Mines | Identified exit to Exiles 553 | -10/Mines | Deemed a non-threat by the Exiles lab entrance 568 | -10/Mines | Entered Exiles 568 | -10/Exiles | Accompanied by 3 allies 588 | -10/Exiles | Met 8R-AWN 601 | -10/Exiles | Met EX-HEX 633 | -10/Exiles | Met EX-DEC 661 | -10/Exiles | Discovered new exit (range 12) 712 | -10/Exiles | Met EX-BIN 723 | -10/Exiles | Aligned with FarCom system 724 | -10/Exiles | Given EX-Vault access code 742 | -10/Exiles | Opened EX-Vault 750 | -10/Exiles | Found XL Autogun Array 768 | -10/Exiles | Warned to stay clear of 0b10 Research branches 859 | -10/Exiles | Left Exiles lab with XL Autogun Array 859 | -10/Exiles | Entered Mines 859 | -9/Mines | Accompanied by 3 allies 894 | -9/Mines | Met a Derelict who couldn't figure out how to use a Trap Extractor 1111 | -9/Mines | Learned location of 1 exit from Lower Caves 1112 | -9/Mines | Discovered new exit (range 5) 1138 | -9/Mines | Discovered new exit (range 9) 1154 | -9/Mines | Entered Materials 1154 | -8/Materials | Accompanied by 3 allies 1154 | -8/Materials | Evolved 4 slots: Utility x2, Weapon x2 1446 | -8/Materials | Build established: Gunner 1910 | -8/Materials | Discovered new exit (range 15) 1934 | -8/Materials | Entered Factory 1934 | -7/Factory | Evolved 2 slots: Propulsion x1, Utility x1 3027 | -7/Factory | Fabricated L-31 Rogue? 3092 | -7/Factory | Discovered new exit (range 16) 3132 | -7/Factory | Garrison activated, responded to threat 3154 | -7/Factory | Lost 3 allies 3229 | -7/Factory | Entered Storage 3430 | -7/Storage | Assisted by bots powering up and referring to "LRC-V3" 3651 | -7/Storage | Lost 5 allies 3667 | -7/Storage | Discovered new exit (range 15) 3711 | -7/Storage | Entered Factory 3711 | -6/Factory | Accompanied by 4 allies 3711 | -6/Factory | Evolved 2 slots: Propulsion x1, Utility x1 3735 | -6/Factory | Build established: Commander-Gunner 3737 | -6/Factory | Lost 4 allies 3797 | -6/Factory | Discovered new exit (range 14) 3817 | -6/Factory | Entered Lower Caves 3817 | -6/Lower Caves | Accompanied by 4 allies 3818 | -6/Lower Caves | Identified exit to Lower Caves 4191 | -6/Lower Caves | Build established: Gunner 4194 | -6/Lower Caves | Attracted the attention of an 0b10 base 4220 | -6/Lower Caves | Destroyed 7 combat bots 4340 | -6/Lower Caves | Entered another Lower Caves area 4358 | -6/Lower Caves | Encountered a Warlord checkpoint 4381 | -6/Lower Caves | Discovered new exit (range 6) 4480 | -6/Lower Caves | Entered Factory 4480 | -5/Factory | Evolved 2 slots: Utility x2 4787 | -5/Factory | Build established: Hacker-Gunner 5478 | -5/Factory | Discovered new exit (range 5) 5488 | -5/Factory | Entered another Factory area 5488 | -4/Factory | Evolved 2 slots: Utility x2 5955 | -4/Factory | Lost 3 parts (2u1w) 6217 | -4/Factory | Garrison activated, responded to threat 6313 | -4/Factory | Spotted B-86 Titan 6325 | -4/Factory | Lost 16 parts (2p4n6u4w) 6372 | -4/Factory | Core integrity fell below 50% 6389 | -4/Factory | Discovered new exit (range 12) 6394 | -4/Factory | Entered Research 6394 | -3/Research | Evolved 2 slots: Power x1, Propulsion x1 6846 | -3/Research | Build established: Hacker-Scout 6953 | -3/Research | Discovered new exit (range 10) 6975 | -3/Research | Entered another Research area 6975 | -2/Research | Evolved 2 slots: Propulsion x1, Utility x1 7001 | -2/Research | Lost 8 parts (1p2n4u1w) 7083 | -2/Research | Fabricated B-74 Champion (x3) 7188 | -2/Research | Discovered new exit (range 3) 7214 | -2/Research | Entered Access 7214 | -1/Access | Accompanied by 3 allies 7214 | -1/Access | Evolved 2 slots: Utility x2 7264 | -1/Access | Build established: Hacker-Mutant 7504 | -1/Access | Lost 3 allies 7514 | -1/Access | Spotted B-99 Colossus 7582 | -1/Access | Lost 7 parts (1p2n3u1w) 7650 | -1/Access | Lost 6 parts (4n1u1w) 7704 | -1/Access | Core integrity fell below 50% 7744 | -1/Access | Core integrity fell below 20% 7748 | -1/Access | Destroyed by H-88 Terminator with KE Penetrator Last Messages --------------- 07730_ Slug penetrates Wall. 07732_ Penetrated by Slug. 07734_ Slug penetrates H-88 Terminator. 07735_ Penetrated by Slug. 07735_ Core Analyzer destroyed. 07735_ Penetrated by Slug. 07737_ Q-thruster destroyed. 07739_ Knocked back. 07740_ Penetrated by Slug. 07741_ Adv. Target Analyzer destroyed. 07741_ Critical hit (Blast). 07741_ Knocked back. 07741_ Slug penetrates Wall. 07741_ Cloaking Device destroyed. 07743_ Knocked back. 07744_ Penetrated by Slug. 07744_ Knocked back. 07745_ Penetrated by Slug. 07746_ Knocked back. 07748_ Penetrated by Slug. Map ----- +----------------------------------------------------+ | ?????????????????????????????????????????????????? | | ?????????????????????????????????????????????????? | | ?????????????????????????????????????????????????? | | ?????????????????????????????????????????????????? | | ?????????????????????????????????????????????????? | | ?????????????????????????????????????????????????? | | ?????????????????????????????????????????????????? | | ?????????????????????????????????????????????????? | | ?????????????????????????????????????????????????? | | ?????????????????????????????????????????????????? | | ?????????????????????????????????????????????????? | | ############?????????????????????????????????????? | | """""""" #?????????????????????????????????????? | | ""T"""" #?????????????????????????????????????? | | #?????????????????????????????????????? | | #?????????????????????????????????????? | | #???????????????????????#?????????????? | | *#?????????????????????? #?????????????? | | #????????????????????? #?????????????? | | #???????????????????? #?????????????? | | #??????????????????? ##????????????? | | #####+######################## #????????????? | | ####?????????? | | % ?w??????? | | h % % H k ????????? | | h % @ #????????????? | | #######"########+#######;;#### #????????????? | | ?# # ????####??????????????????????? | | ?# # ????????????????????????????? | | ?# # ??????????????????????????? | | ?# # " #?????????????????????????? | | ?# # """ #?????????????????????????? | | ?# # """ #?????????????????????????? | | ?# % # " #?????????????????????????? | | ?# """""" # #?????????????????????????? | | ?# """""" # ??????????????????????????? | | ?# """""" ######??#??????????????????????????? | | ?# ?"""?? #??????????????????????????????????? | | ?# ??????? #??????????????????????????????????? | | ?#####???????????????????????????????????????????? | | ?????????????????????????????????????????????????? | | ????????????????????????????????o????????????????? | | ?????????????????????????????????????????????????? | | ?????????????????????????????????????????????????? | | ?????????????????????????????????????????????????? | | ?????????????????????????????????????????????????? | | ?????????????????????????????????????????????????? | | ?????????????????????????????????????????????????? | | ?????????????????????????????????????????????????? | | ?????????????????????????????????????????????????? | +----------------------------------------------------+ Best States ------------- Heat Dissipation 74 Energy Generation 21 Energy Capacity 525 Matter Stores 300 Matter Capacity 300 Sight Range 18 Terrain Scan Density 10 Armor Coverage 225 Resistance: KI 20 Propulsion Shielding 66 Weapon Shielding 66 Phase Shifting 10 Evasion (%) 63 Targeting Accuracy 5 Target Analysis 8 Core Analysis 6 Offensive Hacking 12 Defensive Hacking 20 Item Schematics ----------------- None Robot Schematics ------------------ None Fabricated ------------ L-31 Rogue | x3 | -7/Factory | Preloaded B-74 Champion | x3 | -2/Research | Preloaded Alien Tech Used ----------------- None Achievements -------------- None Challenges ------------ None Game ------ Seed GunBottomlessRouter Manual? 0 Play Time 02:16:12 Cumulative 89.5 hours Start 2024.05.04 @ 16:01:47 End 2024.05.04 @ 18:51:45 Sessions 1 Manual Loads 0 Difficulty Rogue Special Mode None Game No. 73 Rogue 73 Adventurer 0 Explorer 0 Win Type - Total 0 Types 0/0/0/0/0/0/0/0/0 Lore% 47 Gallery% 48 Achievement% 37 Wizard Run 0 Options --------- Layout 2 ASCII 0 Keyboard 0 Movement Mouse Keybinds 0 Fullscreen 1 Font 48/Smallcaps Map View 50x44 Zoom Use 0% Tactical HUD 1 Map Filters NONE Filters NONE Steam 1 RUN: 8a258d32-00d1-4175-ab8f-f3668adb9eb5